bitfinex/quotes_ETHUSD_20250803
["timestamp","ask_amount","ask_price","bid_price","bid_amount"]
[1754239399865,40.42507906,3491.1,3491.0,0.002]
[1754239404072,36.02607906,3491.1,3491.0,0.002]
[1754239404272,42.38642613,3491.1,3491.0,0.002]
[1754239404447,42.81492613,3491.1,3491.0,0.002]
[1754239404652,43.29332613,3491.1,3491.0,0.002]
[1754239411798,42.81392613,3491.1,3491.0,0.002]
[1754239412805,41.83542613,3491.1,3491.0,0.002]
[1754239414370,41.83542613,3491.1,3491.0,0.4541]
[1754239415089,41.83542613,3491.1,3491.0,0.002]
[1754239415597,42.30582613,3491.1,3491.0,0.002]
[1754239416280,42.79972613,3491.1,3491.0,0.002]
[1754239418676,38.40172613,3491.1,3491.0,0.002]
[1754239418876,42.79872613,3491.1,3491.0,0.002]
[1754239419396,30.0,3491.0,3490.8,0.002]
[1754239419598,50.5048854,3490.9,3490.8,0.002]
[1754239419991,51.4691854,3490.9,3490.8,0.002]
[1754239422127,54.4691854,3490.9,3490.3,0.4521]
[1754239422415,19.1078854,3490.4,3490.3,0.4521]
[1754239422590,23.5048854,3490.4,3490.3,0.4521]
[1754239425026,3.0,3490.3,3489.9,0.002]
[1754239425212,3.0,3490.3,3490.2,0.4521]
[1754239425525,9.30678854,3490.3,3490.2,0.4521]
[1754239425827,9.30678854,3490.3,3490.2,0.9031]
[1754239428743,9.30678854,3490.3,3490.2,0.4521]
[1754239429848,39.30678854,3490.3,3489.9,0.002]
[1754239430034,19.1078854,3490.0,3489.9,0.4541]
[1754239430241,23.5038854,3490.0,3489.9,0.4541]
[1754239431255,23.5038854,3490.0,3489.9,0.002]
[1754239431409,53.5038854,3490.0,3489.9,0.002]
[1754239431613,55.0181854,3490.0,3489.9,0.002]
[1754239431846,57.88643247,3490.0,3489.9,0.002]
[1754239436831,56.37213247,3490.0,3489.9,0.4541]
[1754239437035,53.5038854,3490.0,3489.9,0.9051]
[1754239437475,7.395,3490.0,3489.9,0.9051]
[1754239438669,37.395,3490.0,3489.9,0.002]
[1754239438872,37.395,3490.0,3489.9,0.4822]
[1754239439077,38.3539118,3490.0,3489.9,0.4822]
[1754239442105,33.9589118,3490.0,3489.9,0.4822]
[1754239442411,38.3539118,3490.0,3489.9,0.4822]
[1754239445279,54.4617972,3490.0,3489.9,0.4822]
[1754239446381,54.4617972,3490.0,3489.9,0.942]
[1754239447017,54.4607972,3490.0,3489.9,0.942]
[1754239447519,1.16310115,3490.1,3489.9,0.942]
[1754239447682,5.55710115,3490.1,3489.9,0.002]
[1754239448015,8.55710115,3490.1,3490.0,0.94]
[1754239448605,4.16310115,3490.1,3490.0,0.94]
[1754239450545,1.16310115,3490.1,3490.0,0.94]
[1754239452008,0.001,3491.2,3490.0,1.66185329]
[1754239452210,0.001,3491.2,3490.1,1.65658533]
[1754239452411,0.001,3491.2,3490.5,0.1432]
[1754239452960,0.001,3491.2,3490.6,0.94]
[1754239453340,0.001,3491.2,3490.5,0.1432]
[1754239453659,0.001,3491.2,3490.7,0.94]
[1754239457359,0.001,3491.2,3490.7,0.4802]
[1754239457642,0.4303,3490.8,3490.4,0.4802]
[1754239458022,0.4303,3490.8,3490.5,0.4802]
[1754239458340,0.001,3490.8,3490.6,0.4802]
[1754239458542,0.001,3490.8,3490.7,0.4802]
[1754239458744,0.001,3490.8,3490.4,0.94]
[1754239459112,0.001,3490.8,3490.5,0.94]
[1754239459820,0.001,3490.8,3490.6,0.94]
[1754239461066,0.001,3490.8,3490.6,0.4598]
[1754239461252,0.001,3490.8,3490.7,0.4802]
[1754239463323,0.001,3490.8,3490.5,0.4802]
[1754239463740,0.001,3490.8,3490.6,0.4802]
[1754239469789,0.001,3490.8,3489.9,0.1452]
[1754239469942,0.9028,3490.7,3489.9,0.002]
[1754239470143,0.9028,3490.7,3490.2,0.4677]
[1754239470373,0.474,3490.7,3489.9,0.4449]
[1754239470555,16.1088854,3490.8,3489.9,0.002]
[1754239470892,0.4288,3490.6,3490.0,0.4677]
[1754239471492,0.4288,3490.6,3490.0,0.9106]
[1754239471786,0.4288,3490.6,3490.1,0.4677]
[1754239471981,0.001,3490.8,3490.2,0.4429]
[1754239472187,0.001,3490.8,3490.3,0.4677]
[1754239472390,1.52938,3490.7,3490.3,0.4677]
[1754239472742,1.95818,3490.7,3490.4,0.4677]
[1754239473259,1.52938,3490.7,3490.5,0.4677]
[1754239473641,1.95818,3490.7,3490.3,0.4677]
[1754239473880,1.95818,3490.7,3490.4,0.4677]
[1754239476269,0.001,3490.8,3490.2,0.4429]
[1754239476471,0.001,3490.8,3490.3,0.4677]
[1754239476842,0.001,3490.8,3490.4,0.4429]
[1754239477389,0.001,3490.8,3490.5,0.4677]
[1754239477951,0.001,3490.8,3490.6,0.4429]
[1754239478239,0.001,3490.8,3490.6,0.9106]
[1754239478882,0.001,3490.8,3490.7,0.9106]
[1754239486146,0.001,3490.8,3490.7,0.4677]
[1754239487293,0.001,3490.8,3490.7,0.9106]
[1754239489801,0.001,3490.8,3490.5,4.8547]
[1754239490098,0.001,3490.8,3490.7,0.4677]
[1754239490482,0.001,3490.8,3490.7,0.9106]
[1754239490683,0.001,3490.8,3490.7,0.4677]
[1754239490994,0.4298,3490.8,3490.5,0.54408]
[1754239491212,0.001,3490.8,3490.6,1.021798]
[1754239491716,0.001,3490.8,3490.7,0.4677]
[1754239492915,0.001,3490.8,3490.7,0.9106]
[1754239493117,0.001,3490.8,3490.7,1.0713898]
[1754239497824,0.001,3490.8,3490.6,4.940098]
[1754239498012,0.001,3490.8,3490.6,4.386]
[1754239498013,0.4298,3490.8,3490.6,4.386]
[1754239498209,0.4298,3490.8,3490.5,4.385]
[1754239498586,0.001,3490.8,3490.5,4.8527]
[1754239499021,0.001,3490.8,3490.5,4.385]
[1754239499184,0.001,3490.8,3490.6,0.4666]
[1754239500407,0.001,3490.8,3490.6,0.95176]
[1754239500722,0.001,3490.8,3490.6,0.48516]
[1754239500908,0.4233,3491.0,3490.7,0.4666]
[1754239501543,0.4568,3491.2,3490.8,0.9234]
[1754239501544,0.001,3491.2,3490.8,0.9234]
[1754239501724,0.001,3491.2,3490.9,0.9234]
[1754239501885,0.001,3491.2,3490.9,0.4666]
[1754239502687,0.001,3491.2,3490.7,4.385]
[1754239502890,0.001,3491.2,3490.7,5.795416]
[1754239503206,0.001,3491.2,3490.8,0.9234]
[1754239503645,0.001,3491.2,3490.9,0.9234]
[1754239503849,0.001,3491.2,3491.1,0.55]
[1754239504298,0.001,3491.2,3491.1,1.4734]
[1754239504499,0.001,3491.2,3491.1,6.67759305]
[1754239504720,0.001,3491.2,3491.1,4.6166]
[1754239504897,0.001,3491.2,3491.1,4.0666]
[1754239505110,0.001,3491.2,3491.1,4.384]
[1754239505358,0.001,3491.2,3491.1,5.3074]
[1754239505518,0.001,3491.2,3491.1,5.47924426]
[1754239505717,0.001,3491.2,3491.1,5.99852443]
[1754239513308,0.001,3491.2,3491.1,4.93092443]
[1754239513848,0.001,3491.2,3491.1,5.39752443]
[1754239515413,0.001,3491.2,3491.1,0.54792443]
[1754239515736,0.4733,3491.2,3491.1,4.383]
[1754239516052,0.001,3491.2,3491.1,4.383]
[1754239516552,0.001,3491.2,3490.9,0.6098]
[1754239516854,0.001,3491.2,3491.1,4.383]
[1754239518444,0.001,3491.2,3491.1,4.8496]
[1754239518606,0.001,3491.2,3491.1,5.39456]
[1754239519043,0.001,3491.2,3491.1,5.85136]
[1754239522451,0.001,3491.2,3491.1,9.40136]
[1754239522647,0.001,3491.2,3491.1,9.54456]
[1754239522854,0.001,3491.2,3491.1,9.659385]
[1754239526054,0.001,3491.2,3491.1,5.276385]
[1754239526292,0.001,3491.2,3491.1,9.657385]
[1754239526451,0.001,3491.2,3491.1,4.352985]
[1754239526768,0.001,3491.2,3491.1,9.107385]
[1754239526932,0.001,3491.2,3491.1,9.657385]
[1754239528839,0.001,3491.2,3491.1,12.52181168]
[1754239529067,0.001,3491.2,3491.1,9.657385]
[1754239531223,0.001,3491.2,3491.1,9.652485]
[1754239532496,0.001,3491.2,3491.1,8.182985]
[1754239532873,0.001,3491.2,3491.1,9.232785]
[1754239533796,0.001,3491.2,3491.1,9.685685]
[1754239539729,0.001,3491.2,3491.1,12.55011168]
[1754239540030,0.001,3491.5,3491.4,3.41418055]
[1754239540233,0.001,3491.5,3491.4,28.77112616]
[1754239540416,0.001,3491.5,3491.4,28.74248436]
[1754239540591,0.001,3491.5,3491.4,29.69518436]
[1754239541095,0.001,3491.5,3491.4,29.83838436]
[1754239541515,0.001,3491.6,3491.4,29.83838436]
[1754239541828,0.001,3491.6,3491.5,8.5238001]
[1754239541995,0.001,3491.6,3491.5,8.49515912]
[1754239542506,0.001,3491.7,3491.6,6.41401649]
[1754239542830,0.001,3491.7,3491.6,11.88891649]
[1754239543211,0.001,3491.7,3491.6,12.74974949]
[1754239543524,0.001,3491.7,3491.6,13.23676549]
[1754239543730,0.4954,3493.2,3492.0,0.55]
[1754239543904,0.465,3493.4,3492.8,16.1078854]
[1754239544107,0.9604,3493.4,3492.9,4.4076295]
[1754239544298,0.9604,3493.3,3493.1,0.1432]
[1754239544492,0.9604,3493.3,3492.9,4.9525895]
[1754239544493,0.5,3494.8,3493.2,4.379]
[1754239544691,0.5,3494.8,3493.2,4.5222]
[1754239545198,0.9604,3493.5,3493.2,4.55082704]
[1754239545415,0.9604,3493.4,3493.2,4.5222]
[1754239545629,0.5,3494.8,3493.2,4.5222]
[1754239545830,0.9604,3493.5,3493.2,0.1432]
[1754239546036,0.9604,3493.4,3493.1,0.860668]
[1754239546197,0.9604,3493.3,3493.2,4.378]
[1754239547034,0.9604,3493.3,3492.4,0.1432]
[1754239547199,0.9604,3493.3,3492.5,4.378]
[1754239547601,3.0,3493.8,3492.5,4.378]
[1754239547802,0.9604,3493.2,3492.5,4.378]
[1754239548001,1.3012,3493.6,3492.5,4.378]
[1754239548204,0.9604,3493.1,3492.5,4.378]
[1754239548399,0.9604,3493.0,3492.5,4.378]
[1754239548599,0.9604,3492.9,3492.5,4.378]
[1754239548943,0.9604,3492.8,3492.6,4.378]
[1754239549146,1.3012,3493.6,3492.6,4.378]
[1754239549446,0.9604,3492.7,3492.1,3.0]
[1754239549646,0.9604,3492.7,3492.2,4.378]
[1754239549944,0.9604,3492.6,3492.1,0.1432]
[1754239550129,1.3012,3493.6,3492.3,4.378]
[1754239550130,0.9604,3492.5,3492.3,4.378]
[1754239550323,1.3012,3493.6,3492.4,4.378]
[1754239550523,4.43022,3493.5,3492.4,4.378]
[1754239550747,3.0,3493.5,3492.4,4.378]
[1754239550945,0.9604,3493.4,3492.4,4.378]
[1754239551244,0.9604,3493.3,3492.4,4.378]
[1754239551409,3.0,3493.5,3492.5,4.378]
[1754239551615,0.9604,3493.2,3492.6,4.378]
[1754239551850,0.9604,3493.1,3492.7,4.378]
[1754239552074,0.43022,3493.4,3492.7,4.378]
[1754239552232,0.9604,3493.0,3492.7,4.378]
[1754239552416,0.43022,3493.4,3492.7,4.378]
[1754239552761,0.9604,3492.9,3492.7,4.378]
[1754239552962,0.473142,3493.3,3492.7,4.378]
[1754239553148,0.9604,3492.8,3492.7,4.378]
[1754239557878,0.465,3492.8,3492.7,4.378]
[1754239558035,0.4954,3493.0,3492.7,4.378]
[1754239558236,0.465,3492.9,3492.7,4.378]
[1754239559371,0.001,3493.6,3492.8,0.9486936]
[1754239559570,0.001,3493.6,3492.9,0.9336]
[1754239559737,0.001,3493.6,3493.1,0.1432]
[1754239559937,0.001,3493.6,3493.2,4.377]
[1754239560277,0.001,3493.6,3493.2,4.8564]
[1754239560776,0.001,3493.6,3493.2,4.377]
[1754239560979,0.4723,3493.5,3493.2,4.377]
[1754239561272,0.001,3493.6,3493.2,4.8564]
[1754239561983,0.001,3493.6,3493.2,4.377]
[1754239562184,0.001,3493.6,3493.3,0.4794]
[1754239563830,0.001,3493.6,3493.4,0.4794]
[1754239564328,0.001,3493.6,3493.3,0.1432]
[1754239564631,0.001,3493.6,3493.5,0.4794]
[1754239564915,0.001,3493.6,3493.5,0.9336]
[1754239566503,0.001,3493.6,3493.5,0.4794]
[1754239566723,0.001,3493.6,3493.5,1.0768]
[1754239569259,0.001,3493.6,3493.5,0.6226]
[1754239569535,0.001,3493.6,3493.5,1.6334365]
[1754239570513,0.001,3493.6,3493.5,6.0094365]
[1754239572338,0.001,3493.6,3493.5,5.0748365]
[1754239577847,0.001,3493.6,3493.5,5.5542365]
[1754239580058,0.001,3493.6,3493.5,5.6689845]
[1754239580954,0.001,3493.6,3493.5,5.6679845]
[1754239581164,0.001,3493.6,3493.5,6.1221845]
[1754239581367,0.001,3493.6,3493.5,5.1885845]
[1754239581831,0.001,3493.6,3493.5,5.6679845]
[1754239582025,0.001,3493.6,3493.5,5.5532365]
[1754239582551,0.001,3493.6,3493.5,6.0074365]
[1754239583053,0.001,3494.0,3493.5,6.0074365]
[1754239583054,0.001,3494.0,3493.6,3.55]
[1754239583245,0.001,3494.0,3493.6,28.10285281]
[1754239583439,0.001,3494.0,3493.6,27.14062905]
[1754239583640,0.001,3494.0,3493.6,28.07422905]
[1754239585455,0.001,3494.0,3493.6,30.93660596]
[1754239585647,0.001,3494.0,3493.6,28.07422905]
[1754239586567,0.001,3494.0,3493.6,16.34034365]
[1754239586856,0.001,3494.0,3493.6,16.33934365]
[1754239588663,0.001,3494.0,3493.6,16.93774365]
[1754239589347,0.001,3494.0,3493.6,12.56474365]
[1754239589552,0.001,3494.0,3493.6,16.93774365]
[1754239590061,0.001,3494.0,3493.6,11.08114365]
[1754239590266,0.4617,3494.0,3493.6,15.45414365]
[1754239590434,0.4617,3494.0,3493.6,16.00414365]
[1754239590636,0.4617,3494.0,3493.6,16.45774365]
[1754239590839,0.4617,3494.0,3493.6,15.90774365]
[1754239591041,0.4617,3494.0,3493.6,16.45774365]
[1754239592373,0.001,3494.0,3493.6,16.45774365]
[1754239592574,0.001,3494.0,3493.6,16.92204365]
[1754239592784,0.001,3494.0,3493.6,16.45774365]
[1754239593646,0.4617,3494.0,3493.6,11.63114365]
[1754239593972,0.001,3494.0,3493.6,11.08114365]
[1754239594165,0.9424,3493.7,3493.6,14.99894365]
[1754239595449,0.9424,3493.7,3493.6,10.62594365]
[1754239595772,0.9424,3493.7,3493.6,14.99894365]
[1754239595968,0.4617,3493.7,3493.6,11.3972]
[1754239596769,0.001,3493.7,3493.6,11.3972]
[1754239597439,0.001,3493.7,3493.6,11.3982]
[1754239598575,0.001,3493.7,3493.6,7.0252]
[1754239598869,0.9424,3493.7,3493.6,11.255]
[1754239600645,0.4617,3493.7,3493.6,11.255]
[1754239601375,0.4617,3493.7,3493.6,4.373]
[1754239603287,0.001,3493.7,3493.6,4.373]
[1754239604460,0.001,3493.7,3493.5,0.02862458]
[1754239604659,0.4817,3493.7,3493.6,4.372]
[1754239604952,0.001,3493.7,3493.6,4.372]
[1754239606016,0.001,3493.7,3493.6,4.87174254]
[1754239606304,0.001,3493.7,3493.6,5.9614663]
[1754239606554,0.001,3493.7,3493.6,5.93284254]
[1754239606707,0.001,3493.7,3493.6,5.46854254]
[1754239607464,0.001,3493.7,3493.6,5.01494254]
[1754239607659,0.001,3493.7,3493.6,0.64294254]
[1754239607871,0.4617,3493.7,3493.6,4.5152]
[1754239608802,0.001,3493.7,3493.6,4.5152]
[1754239609007,0.9424,3493.7,3493.6,0.1432]
[1754239609303,0.9424,3493.7,3493.6,4.372]
[1754239609766,0.9424,3493.7,3493.2,0.1432]
[1754239609966,0.001,3493.7,3492.8,0.4536]
[1754239610186,0.001,3493.7,3492.6,10.56350566]
[1754239610187,0.9414,3493.6,3492.9,4.372]
[1754239610400,0.9414,3493.5,3493.0,4.372]
[1754239610609,0.001,3493.7,3493.1,4.85422786]
[1754239610897,0.4607,3493.5,3493.1,4.85422786]
[1754239611102,0.4607,3493.5,3493.1,5.40040065]
[1754239611400,0.001,3493.7,3493.4,0.1432]
[1754239611699,0.001,3493.7,3493.5,4.372]
[1754239612110,0.001,3493.7,3493.6,0.48222376]
[1754239612268,0.001,3493.7,3493.6,1.08972376]
[1754239612467,0.001,3493.7,3493.6,1.63589614]
[1754239614594,0.001,3493.7,3493.6,1.60727238]
[1754239614898,0.001,3493.7,3493.6,1.14297238]
[1754239615199,0.001,3493.7,3493.6,4.5152]
[1754239615200,0.4617,3493.7,3493.6,4.5152]
[1754239615775,0.4617,3493.7,3493.4,0.114745]
[1754239615982,0.4817,3493.7,3493.6,4.372]
[1754239616379,0.001,3493.7,3493.6,4.372]
[1754239617573,0.4617,3493.7,3493.6,4.372]
[1754239618307,0.001,3493.7,3493.6,4.82352]
[1754239620602,0.957,3493.7,3493.6,4.82352]
[1754239620806,0.957,3493.7,3493.6,4.372]
[1754239621725,0.4658,3493.7,3493.6,4.372]
[1754239623407,0.001,3493.7,3493.6,4.372]
[1754239624305,0.957,3493.7,3493.6,4.372]
[1754239624508,0.4658,3493.7,3493.6,4.372]
[1754239626535,0.001,3493.7,3493.6,4.372]
[1754239627190,0.001,3493.7,3493.6,4.8233]
[1754239628488,0.001,3493.7,3493.6,4.8253]
[1754239634598,0.001,3493.7,3493.6,5.51361246]
[1754239634896,0.001,3493.7,3493.6,5.96761246]
[1754239635129,0.001,3493.7,3493.6,5.51361246]
[1754239635992,0.001,3493.7,3493.6,4.91911246]
[1754239636206,0.001,3493.7,3493.6,4.374]
[1754239636888,0.001,3493.7,3493.6,4.8253]
[1754239637341,0.001,3493.7,3493.6,5.2793]
[1754239638001,0.001,3493.7,3493.6,4.8253]
[1754239638393,0.001,3493.7,3493.6,5.2793]
[1754239639113,0.001,3493.7,3493.6,4.8253]
[1754239640038,0.001,3493.7,3493.6,5.833025]
[1754239640239,0.001,3493.7,3493.6,5.976225]
[1754239640609,0.001,3493.7,3493.6,5.522225]
[1754239640830,0.001,3493.7,3493.6,5.070925]
[1754239641013,0.001,3493.7,3493.6,6.00484876]
[1754239641213,0.001,3493.7,3493.6,5.976225]
[1754239642145,0.001,3493.7,3493.6,6.526225]
[1754239642508,0.001,3493.7,3493.6,9.526225]
[1754239644200,0.001,3493.7,3493.6,5.154225]
[1754239644424,0.001,3493.7,3493.6,8.975225]
[1754239644698,0.001,3493.7,3493.6,3.698925]
[1754239644904,0.001,3493.7,3493.6,0.698925]
[1754239645125,0.001,3493.7,3493.6,0.1452]
[1754239645307,0.957,3493.7,3493.6,4.372]
[1754239645632,0.001,3493.7,3493.6,4.372]
[1754239646751,0.957,3493.7,3493.6,0.002]
[1754239646932,1.04661461,3493.7,3493.6,4.372]
[1754239647298,1.04661457,3493.7,3493.6,4.372]
[1754239653355,1.04661457,3493.7,3493.6,0.002]
[1754239659539,0.09061457,3493.7,3493.6,0.002]
[1754239659745,0.001,3493.7,3493.6,0.002]
[1754239659976,0.435,3493.7,3493.6,0.002]
[1754239660453,0.9253,3493.7,3493.6,0.002]
[1754239660655,1.01491457,3493.7,3493.6,0.002]
[1754239662272,0.52461457,3493.7,3493.6,0.002]
[1754239662476,0.09061457,3493.7,3493.6,0.002]
[1754239662661,0.001,3493.7,3493.6,1.3691]
[1754239663577,0.001,3493.7,3493.6,1.39772376]
[1754239665365,0.001,3493.7,3493.6,1.94772376]
[1754239666381,0.001,3493.7,3493.6,2.06245776]
[1754239668847,0.001,3493.7,3493.6,2.033834]
[1754239669052,0.001,3493.7,3493.6,2.06245776]
[1754239669581,0.001,3493.7,3493.6,2.20565776]
[1754239671999,0.001,3493.7,3493.6,2.177034]
[1754239672699,0.001,3493.7,3493.6,2.20565776]
[1754239673699,0.001,3493.7,3493.6,2.177034]
[1754239674297,0.001,3493.7,3493.6,2.20565776]
[1754239675314,0.001,3493.7,3493.6,8.06803467]
[1754239675489,0.001,3493.7,3493.6,8.03941091]
[1754239675668,0.001,3493.7,3493.6,5.177034]
[1754239676001,0.001,3493.7,3493.6,5.20565776]
[1754239676438,0.001,3494.0,3493.6,5.20565776]
[1754239676439,0.001,3494.0,3493.7,6.41222863]
[1754239676720,0.001,3494.0,3493.9,19.6578854]
[1754239677074,0.001,3494.0,3493.9,20.7309854]
[1754239678197,0.001,3494.0,3493.9,21.1649854]
[1754239678595,0.001,3494.0,3493.9,25.0821854]
[1754239679589,0.001,3494.0,3493.9,25.0811854]
[1754239679823,0.001,3494.0,3493.9,10.61172328]
[1754239680011,0.001,3494.0,3493.9,8.4952]
[1754239681234,0.001,3494.0,3493.9,4.1272]
[1754239681437,0.4449,3494.0,3493.9,7.9452]
[1754239681595,0.8962,3494.0,3493.9,7.9452]
[1754239681798,0.8962,3494.0,3493.9,8.88472317]
[1754239682600,0.8962,3494.0,3493.9,5.88472317]
[1754239683224,0.8962,3494.0,3493.9,1.51672317]
[1754239683426,0.8962,3494.0,3493.9,0.5772]
[1754239683635,0.8962,3494.0,3493.9,4.368]
[1754239684809,0.001,3494.0,3493.9,4.368]
[1754239685841,0.8962,3494.0,3493.9,4.368]
[1754239686538,0.4449,3494.0,3493.7,1.003764]
[1754239686788,0.8962,3494.0,3493.8,4.368]
[1754239687043,0.4513,3493.9,3493.8,4.368]
[1754239687211,0.8952,3493.9,3493.8,4.368]
[1754239692131,0.8952,3493.9,3493.8,5.228584]
[1754239693283,0.8952,3493.9,3493.8,4.368]
[1754239693666,0.8952,3493.9,3493.6,0.1452]
[1754239693667,0.8952,3493.9,3493.7,0.860611]
[1754239693988,0.001,3494.0,3493.6,0.002]
[1754239694350,0.09060321,3494.0,3493.7,4.368]
[1754239694555,0.8952,3493.9,3493.7,4.368]
[1754239694755,0.8952,3493.8,3493.7,4.368]
[1754239695201,0.8952,3493.8,3493.6,0.002]
[1754239695401,0.001,3494.0,3493.7,4.368]
[1754239695557,0.08961479,3493.9,3493.7,4.368]
[1754239695978,0.8952,3493.8,3493.7,4.368]
[1754239696158,0.98481479,3493.8,3493.7,4.368]
[1754239696357,0.8952,3493.8,3493.7,4.368]
[1754239697008,0.98481398,3493.8,3493.7,4.368]
[1754239697212,0.98481486,3493.8,3493.7,4.368]
[1754239697526,0.8952,3493.8,3493.7,4.368]
[1754239699103,0.001,3494.0,3493.7,4.368]
[1754239699307,0.4439,3493.9,3493.7,4.368]
[1754239699626,0.4439,3493.8,3493.7,4.368]
[1754239699808,0.001,3494.0,3493.7,4.368]
[1754239699994,0.4439,3493.9,3493.7,4.368]
[1754239701433,0.4439,3493.8,3493.7,4.368]
[1754239701930,0.001,3494.0,3493.7,4.368]
[1754239701931,0.4449,3494.0,3493.7,4.368]
[1754239702126,0.4439,3493.8,3493.7,4.368]
[1754239702695,0.001,3494.0,3493.7,4.368]
[1754239702898,0.4449,3494.0,3493.7,4.368]
[1754239703137,0.53451094,3494.0,3493.7,4.368]
[1754239705015,0.09061094,3494.0,3493.7,4.368]
[1754239705348,0.001,3494.0,3493.7,4.368]
[1754239705523,0.4449,3494.0,3493.7,4.84]
[1754239706248,0.4449,3494.0,3493.7,4.368]
[1754239706432,0.8962,3494.0,3493.7,4.368]
[1754239707550,0.4523,3494.0,3493.7,4.368]
[1754239707849,0.98481061,3493.9,3493.8,4.368]
[1754239710117,0.98481061,3493.9,3493.6,0.002]
[1754239710348,0.56291061,3493.8,3493.7,4.368]
[1754239710548,1.03681061,3493.8,3493.7,4.368]
[1754239712879,0.56291061,3493.8,3493.6,0.002]
[1754239713076,0.08961061,3493.7,3493.6,0.002]
[1754239713676,0.08961209,3493.9,3493.6,0.002]
[1754239713876,0.08961209,3493.8,3493.6,0.002]
[1754239714075,0.08961209,3493.7,3493.6,0.002]
[1754239714381,0.87718121,3493.9,3493.6,0.002]
[1754239714382,0.08961209,3493.8,3493.6,0.002]
[1754239714693,0.08961209,3493.7,3493.6,0.002]
[1754239714892,1.03681209,3493.7,3493.6,0.002]
[1754239715389,0.56291209,3493.7,3493.6,0.002]
[1754239716109,0.08961209,3493.7,3493.6,0.002]
[1754239717524,1.03681209,3493.7,3493.6,4.37]
[1754239721011,1.03681209,3493.7,3493.6,0.002]
[1754239724925,0.08961209,3493.7,3493.6,0.4898]
[1754239730841,0.08961209,3493.7,3493.6,0.9224]
[1754239731935,0.08961204,3493.7,3493.6,0.9224]
[1754239740152,0.08961204,3493.7,3493.6,4.368]
[1754239740352,0.08961204,3493.7,3493.6,4.8279]
[1754239743320,0.08961204,3493.7,3493.6,5.35751]
[1754239743525,0.08961204,3493.7,3493.6,5.82371]
[1754239743747,0.001,3493.8,3493.6,5.96691]
[1754239743923,0.001,3493.8,3493.7,0.95472294]
[1754239744632,0.001,3493.8,3493.7,1.64792294]
[1754239744958,0.001,3493.8,3493.7,4.04231077]
[1754239746559,0.001,3493.8,3493.7,7.04231077]
[1754239746723,0.001,3493.8,3493.7,7.01368783]
[1754239747124,0.0895817,3495.0,3493.8,3.55]
[1754239747326,1.86908768,3495.1,3494.9,0.1432]
[1754239747528,0.4327,3496.0,3495.0,4.3936123]
[1754239747759,0.089566,3495.9,3495.0,4.3936123]
[1754239748064,0.089566,3495.8,3495.1,1.0693]
[1754239748262,0.089566,3495.9,3495.2,4.39361066]
[1754239748465,0.089566,3495.9,3495.2,4.85981066]
[1754239748661,0.089566,3495.9,3495.3,0.4599]
[1754239748861,0.4327,3496.2,3495.4,4.365]
[1754239749061,0.089566,3496.1,3495.5,0.4599]
[1754239749265,0.522266,3496.2,3495.6,4.365]
[1754239751038,0.4891,3496.1,3495.6,4.365]
[1754239751370,1.011366,3496.0,3495.6,4.365]
[1754239751678,0.9218,3495.9,3495.7,4.364]
[1754239751989,0.9218,3495.8,3495.7,4.364]
[1754239752467,0.9218,3496.1,3495.7,4.364]
[1754239752643,1.01136424,3496.0,3495.7,4.364]
[1754239752842,3.0,3496.8,3495.7,4.364]
[1754239753049,0.4327,3496.0,3495.7,4.364]
[1754239753649,0.08956629,3496.1,3495.7,4.364]
[1754239753882,0.4327,3495.9,3495.7,4.364]
[1754239754634,0.4327,3495.8,3495.7,4.364]
[1754239756567,0.9218,3495.8,3495.7,4.364]
[1754239756767,0.9218,3495.8,3494.9,0.1432]
[1754239756955,0.9218,3495.7,3495.0,4.8229]
[1754239757360,0.9218,3495.7,3495.0,4.8292]
[1754239757671,0.4327,3495.7,3495.1,0.4599]
[1754239758673,0.4327,3495.7,3495.2,4.363]
[1754239758990,0.9218,3495.6,3495.3,4.363]
[1754239759341,0.4327,3495.5,3495.3,4.363]
[1754239759568,0.001,3496.0,3495.3,4.363]
[1754239759874,0.4327,3495.7,3495.4,4.363]
[1754239760183,0.4327,3495.6,3495.4,4.363]
[1754239761286,1.3011,3496.0,3495.4,4.363]
[1754239761465,0.9218,3495.9,3495.4,4.363]
[1754239761635,1.14409,3495.8,3495.4,4.363]
[1754239761973,0.9218,3495.7,3495.4,4.363]
[1754239762385,0.4327,3495.6,3495.4,4.363]
[1754239762892,0.4327,3495.6,3494.8,0.4599]
[1754239763042,0.9218,3495.5,3494.9,4.363]
[1754239763241,30.0,3495.7,3495.0,4.363]
[1754239763571,0.9218,3495.4,3495.0,4.363]
[1754239763735,0.9218,3495.3,3495.1,4.363]
[1754239763939,0.4327,3495.2,3495.1,4.363]
[1754239764474,0.22229,3495.8,3495.1,5.2891]
[1754239764680,0.22229,3495.8,3495.2,0.4599]
[1754239764863,0.22229,3495.8,3495.2,0.9261]
[1754239765172,0.22229,3495.8,3495.3,0.9261]